[Event "Early-Titled-Tuesday-Blitz-October-03-2023"]
[Site "Chess.com"]
[Date "2023.10.03"]
[Round "4"]
[White "Oleksandr_Bortnyk"]
[Black "isaak2009"]
[Result "1-0"]
[WhiteElo "3002"]
[BlackElo "2553"]
[TimeControl "180+1"]
[EndTime "8:38:47 PDT"]
[Termination "Oleksandr_Bortnyk won on time"]

1. e4 {[%clk 0:03:00.2]} 1... c6 {[%clk 0:02:59.3]} 2. c4 {[%clk 0:02:53.6]}
2... d5 {[%clk 0:02:59.7]} 3. cxd5 {[%clk 0:02:54.5]} 3... cxd5 {[%clk
0:03:00.5]} 4. exd5 {[%clk 0:02:54.9]} 4... Nf6 {[%clk 0:03:01.1]} 5. Qa4+
{[%clk 0:02:54.7]} 5... Nbd7 {[%clk 0:02:59.9]} 6. Nc3 {[%clk 0:02:54.7]} 6...
g6 {[%clk 0:02:59.3]} 7. Bc4 {[%clk 0:02:54.5]} 7... Bg7 {[%clk 0:02:58.2]} 8.
Nf3 {[%clk 0:02:54.5]} 8... O-O {[%clk 0:02:57.8]} 9. d3 {[%clk 0:02:55.1]} 9...
a6 {[%clk 0:02:55.9]} 10. Qa3 {[%clk 0:02:55.2]} 10... b6 {[%clk 0:02:55.6]} 11.
O-O {[%clk 0:02:54.2]} 11... Bb7 {[%clk 0:02:55.1]} 12. Re1 {[%clk 0:02:54.9]}
12... b5 {[%clk 0:02:53.8]} 13. Bb3 {[%clk 0:02:55]} 13... Re8 {[%clk
0:02:47.8]} 14. Be3 {[%clk 0:02:55.2]} 14... Nb6 {[%clk 0:02:43.2]} 15. Bxb6
{[%clk 0:02:55.2]} 15... Qxb6 {[%clk 0:02:44.1]} 16. Qb4 {[%clk 0:02:55.2]}
16... Rad8 {[%clk 0:01:42.8]} 17. Rxe7 {[%clk 0:02:53.2]} 17... Bf8 {[%clk
0:01:28.4]} 18. Rxe8 {[%clk 0:02:51.7]} 18... Rxe8 {[%clk 0:01:29.3]} 19. Qf4
{[%clk 0:02:49.4]} 19... Bd6 {[%clk 0:01:20]} 20. Qg5 {[%clk 0:02:33.6]} 20...
Kg7 {[%clk 0:00:45.2]} 21. Re1 {[%clk 0:02:01.3]} 21... h6 {[%clk 0:00:44.8]}
22. Qd2 {[%clk 0:01:54.8]} 22... Rd8 {[%clk 0:00:31.4]} 23. Ne4 {[%clk
0:01:52.5]} 23... Bb8 {[%clk 0:00:13.5]} 24. Qc3 {[%clk 0:01:32.2]} 24... b4
{[%clk 0:00:05.4]} 25. Qxf6+ {[%clk 0:01:15.8]} 25... Qxf6 {[%clk 0:00:06.3]}
26. Nxf6 {[%clk 0:01:16.7]} 26... Kxf6 {[%clk 0:00:06.3]} 27. Nd2 {[%clk
0:01:04.6]} 27... Bxd5 {[%clk 0:00:03.3]} 28. Bxd5 {[%clk 0:01:05.5]} 28... Rxd5
{[%clk 0:00:03.8]} 29. Re3 {[%clk 0:01:06.4]} 29... Ba7 {[%clk 0:00:02]} 30.
Rf3+ {[%clk 0:01:06.6]} 30... Ke6 {[%clk 0:00:01.9]} 31. Nc4 {[%clk 0:01:05.4]}
31... Bd4 {[%clk 0:00:01.5]} 32. Kf1 {[%clk 0:01:03.3]} 32... f5 {[%clk
0:00:01.9]} 33. h4 {[%clk 0:01:02.8]} 33... a5 {[%clk 0:00:01.7]} 34. Rg3 {[%clk
0:00:59.9]} 34... Kf6 {[%clk 0:00:01]} 35. f4 {[%clk 0:00:59.6]} 1-0

[Event "Early-Titled-Tuesday-Blitz-October-03-2023"]
[Site "Chess.com"]
[Date "2023.10.03"]
[Round "4"]
[White "ChainedDowntohell"]
[Black "Ariadna_Atreides"]
[Result "1-0"]
[WhiteElo "2432"]
[BlackElo "2197"]
[TimeControl "180+1"]
[EndTime "8:38:48 PDT"]
[Termination "ChainedDowntohell won on time"]

1. d4 {[%clk 0:03:00.9]} 1... Nf6 {[%clk 0:02:59.3]} 2. Nf3 {[%clk 0:02:59.6]}
2... e6 {[%clk 0:02:59.1]} 3. c4 {[%clk 0:02:59.5]} 3... Bb4+ {[%clk 0:02:59.1]}
4. Bd2 {[%clk 0:02:58.5]} 4... Bxd2+ {[%clk 0:02:59.6]} 5. Nbxd2 {[%clk
0:02:56.3]} 5... c5 {[%clk 0:02:43.9]} 6. g3 {[%clk 0:02:45.7]} 6... Nc6 {[%clk
0:02:35.6]} 7. dxc5 {[%clk 0:02:43]} 7... Qa5 {[%clk 0:02:32.7]} 8. a3 {[%clk
0:02:40.6]} 8... Qxc5 {[%clk 0:02:30.7]} 9. b4 {[%clk 0:02:40.5]} 9... Qh5
{[%clk 0:02:29.6]} 10. Bg2 {[%clk 0:02:38.6]} 10... d5 {[%clk 0:02:22.9]} 11.
O-O {[%clk 0:02:29.3]} 11... O-O {[%clk 0:02:20.8]} 12. e3 {[%clk 0:02:26.1]}
12... Rd8 {[%clk 0:02:08.4]} 13. Qb3 {[%clk 0:02:14.9]} 13... e5 {[%clk
0:01:57.2]} 14. cxd5 {[%clk 0:02:08.6]} 14... Nxd5 {[%clk 0:01:55.8]} 15. Rfd1
{[%clk 0:02:01.2]} 15... Be6 {[%clk 0:01:53]} 16. Qb2 {[%clk 0:01:59]} 16... a6
{[%clk 0:01:41.7]} 17. Rdc1 {[%clk 0:01:48.2]} 17... Rac8 {[%clk 0:01:38.5]} 18.
Ne4 {[%clk 0:01:47.3]} 18... Bg4 {[%clk 0:01:31.3]} 19. Nfd2 {[%clk 0:01:37.9]}
19... Bh3 {[%clk 0:01:28.2]} 20. Bf3 {[%clk 0:01:29.5]} 20... Bg4 {[%clk
0:01:25.5]} 21. Bg2 {[%clk 0:01:29.2]} 21... Bh3 {[%clk 0:01:25.3]} 22. Bh1
{[%clk 0:01:29.9]} 22... Qe2 {[%clk 0:01:14]} 23. Bf3 {[%clk 0:01:17.8]} 23...
Qb5 {[%clk 0:01:03.1]} 24. Rc5 {[%clk 0:01:09.3]} 24... Qb6 {[%clk 0:01:01.5]}
25. Ng5 {[%clk 0:01:08]} 25... Be6 {[%clk 0:00:58.3]} 26. Nxe6 {[%clk
0:01:07.7]} 26... fxe6 {[%clk 0:00:59.1]} 27. Rac1 {[%clk 0:01:04.2]} 27... h6
{[%clk 0:00:40.2]} 28. Nc4 {[%clk 0:01:03.7]} 28... Qa7 {[%clk 0:00:31.8]} 29.
Nxe5 {[%clk 0:01:01.2]} 29... Nxe5 {[%clk 0:00:06.9]} 30. Qxe5 {[%clk
0:00:58.9]} 30... Rxc5 {[%clk 0:00:04.5]} 31. Qxe6+ {[%clk 0:00:59.2]} 31... Kh8
{[%clk 0:00:03.8]} 32. Rxc5 {[%clk 0:01:00.1]} 32... Nb6 {[%clk 0:00:01.6]} 33.
Rc7 {[%clk 0:00:56.6]} 1-0

[Event "Early-Titled-Tuesday-Blitz-October-03-2023"]
[Site "Chess.com"]
[Date "2023.10.03"]
[Round "4"]
[White "Sanyura"]
[Black "NLLO777"]
[Result "1-0"]
[WhiteElo "2658"]
[BlackElo "2393"]
[TimeControl "180+1"]
[EndTime "8:38:49 PDT"]
[Termination "Sanyura won by resignation"]

1. e4 {[%clk 0:03:00.9]} 1... c5 {[%clk 0:03:00]} 2. Nf3 {[%clk 0:02:58.7]} 2...
d6 {[%clk 0:03:00.2]} 3. d4 {[%clk 0:02:58.4]} 3... cxd4 {[%clk 0:03:01.1]} 4.
Nxd4 {[%clk 0:02:58.7]} 4... Nf6 {[%clk 0:03:01.7]} 5. Nc3 {[%clk 0:02:58.8]}
5... a6 {[%clk 0:03:02]} 6. h3 {[%clk 0:02:53.1]} 6... e5 {[%clk 0:02:59.3]} 7.
Nde2 {[%clk 0:02:50.4]} 7... h5 {[%clk 0:02:59]} 8. Bg5 {[%clk 0:02:44.2]} 8...
Be6 {[%clk 0:02:59.3]} 9. g3 {[%clk 0:02:39]} 9... Nbd7 {[%clk 0:02:58.6]} 10.
Bg2 {[%clk 0:02:38.2]} 10... Be7 {[%clk 0:02:58.8]} 11. O-O {[%clk 0:02:25.1]}
11... Rc8 {[%clk 0:02:58.8]} 12. a4 {[%clk 0:02:22.2]} 12... O-O {[%clk
0:02:57.9]} 13. Be3 {[%clk 0:02:06.1]} 13... Qc7 {[%clk 0:02:47.3]} 14. f4
{[%clk 0:01:53.2]} 14... Nb6 {[%clk 0:02:34.1]} 15. f5 {[%clk 0:01:10]} 15...
Nc4 {[%clk 0:02:30.6]} 16. Bf2 {[%clk 0:01:05.6]} 16... Bd7 {[%clk 0:02:23.1]}
17. b3 {[%clk 0:01:00.4]} 17... Na5 {[%clk 0:02:16.5]} 18. g4 {[%clk 0:00:45]}
18... d5 {[%clk 0:01:40.7]} 19. g5 {[%clk 0:00:40.5]} 19... Nxe4 {[%clk
0:01:40.7]} 20. Nxd5 {[%clk 0:00:40.4]} 20... Nxf2 {[%clk 0:01:25.7]} 21. Nxe7+
{[%clk 0:00:29.1]} 21... Kh8 {[%clk 0:01:26.2]} 22. Rxf2 {[%clk 0:00:29.7]}
22... Rce8 {[%clk 0:01:15.5]} 23. Nf4 {[%clk 0:00:15.2]} 23... Bxf5 {[%clk
0:00:48.5]} 24. Qxh5+ {[%clk 0:00:11.7]} 24... Bh7 {[%clk 0:00:48.7]} 25. Nfg6+
{[%clk 0:00:11.4]} 25... fxg6 {[%clk 0:00:48.2]} 26. Nxg6+ {[%clk 0:00:12.3]}
26... Kg8 {[%clk 0:00:48.2]} 27. Bd5+ {[%clk 0:00:11.3]} 1-0

[Event "Early-Titled-Tuesday-Blitz-October-03-2023"]
[Site "Chess.com"]
[Date "2023.10.03"]
[Round "4"]
[White "Elbebiber"]
[Black "ajedrez-facil"]
[Result "0-1"]
[WhiteElo "2140"]
[BlackElo "2279"]
[TimeControl "180+1"]
[EndTime "8:38:52 PDT"]
[Termination "ajedrez-facil won by checkmate"]

1. f4 {[%clk 0:03:00.9]} 1... d5 {[%clk 0:02:59.3]} 2. Nf3 {[%clk 0:03:00.4]}
2... c5 {[%clk 0:02:55.5]} 3. e3 {[%clk 0:02:59.4]} 3... Nc6 {[%clk 0:02:56]} 4.
Bb5 {[%clk 0:02:59.1]} 4... Bd7 {[%clk 0:02:54.8]} 5. b3 {[%clk 0:02:54.7]} 5...
a6 {[%clk 0:02:54.7]} 6. Bxc6 {[%clk 0:02:47]} 6... Bxc6 {[%clk 0:02:55.6]} 7.
Ne5 {[%clk 0:02:46.6]} 7... Qc7 {[%clk 0:02:55]} 8. Bb2 {[%clk 0:02:42.8]} 8...
Nf6 {[%clk 0:02:54]} 9. O-O {[%clk 0:02:37.7]} 9... e6 {[%clk 0:02:51.3]} 10. d3
{[%clk 0:02:32.4]} 10... Be7 {[%clk 0:02:49.6]} 11. Nd2 {[%clk 0:02:26.8]} 11...
Rd8 {[%clk 0:02:42.8]} 12. Ndf3 {[%clk 0:02:25.1]} 12... b5 {[%clk 0:02:36.7]}
13. Qe2 {[%clk 0:02:16.8]} 13... Bb7 {[%clk 0:02:34.6]} 14. a4 {[%clk
0:01:54.6]} 14... b4 {[%clk 0:02:30.9]} 15. Rad1 {[%clk 0:01:49.8]} 15... a5
{[%clk 0:02:29.5]} 16. g3 {[%clk 0:01:35.8]} 16... Ba6 {[%clk 0:02:26.5]} 17.
Rfe1 {[%clk 0:01:31.4]} 17... Kf8 {[%clk 0:02:14.2]} 18. Qf2 {[%clk 0:01:29.2]}
18... Nd7 {[%clk 0:02:11.9]} 19. Nxd7+ {[%clk 0:01:26.8]} 19... Rxd7 {[%clk
0:02:06.1]} 20. Ne5 {[%clk 0:01:25.5]} 20... Rd8 {[%clk 0:02:06.5]} 21. e4
{[%clk 0:01:13.1]} 21... Bf6 {[%clk 0:02:02.4]} 22. exd5 {[%clk 0:01:07.2]}
22... Rxd5 {[%clk 0:02:02.5]} 23. Ba1 {[%clk 0:01:06]} 23... Ke7 {[%clk
0:01:59.2]} 24. Re3 {[%clk 0:00:47.6]} 24... Rhd8 {[%clk 0:01:57.7]} 25. Rde1
{[%clk 0:00:46.7]} 25... Bb7 {[%clk 0:01:51.6]} 26. R3e2 {[%clk 0:00:35.5]}
26... Bxe5 {[%clk 0:01:49.2]} 27. Rxe5 {[%clk 0:00:33.4]} 27... Qc6 {[%clk
0:01:46.5]} 28. Rxd5 {[%clk 0:00:23.8]} 28... Qxd5 {[%clk 0:01:45.3]} 29. Kf1
{[%clk 0:00:23.2]} 29... g6 {[%clk 0:01:31.3]} 30. Re5 {[%clk 0:00:18.6]} 30...
Qh1+ {[%clk 0:01:29.4]} 31. Qg1 {[%clk 0:00:18.7]} 31... Qf3+ {[%clk 0:01:20.3]}
32. Qf2 {[%clk 0:00:18.7]} 32... Qd1+ {[%clk 0:01:13.4]} 33. Re1 {[%clk
0:00:18.6]} 33... Qg4 {[%clk 0:01:13.2]} 34. Qxc5+ {[%clk 0:00:18.3]} 34... Kd7
{[%clk 0:01:01.5]} 35. Be5 {[%clk 0:00:14.7]} 35... Qf3+ {[%clk 0:00:57.5]} 36.
Qf2 {[%clk 0:00:14.7]} 36... Qh1+ {[%clk 0:00:57]} 37. Qg1 {[%clk 0:00:13.9]}
37... Qd5 {[%clk 0:00:56.6]} 38. Qe3 {[%clk 0:00:13.1]} 38... Qg2# {[%clk
0:00:51.8]} 0-1

[Event "Early-Titled-Tuesday-Blitz-October-03-2023"]
[Site "Chess.com"]
[Date "2023.10.03"]
[Round "4"]
[White "LUISMIGUELOV"]
[Black "spotbet"]
[Result "0-1"]
[WhiteElo "2156"]
[BlackElo "2435"]
[TimeControl "180+1"]
[EndTime "8:38:53 PDT"]
[Termination "spotbet won on time"]

1. d4 {[%clk 0:03:00.9]} 1... f5 {[%clk 0:02:58.9]} 2. e4 {[%clk 0:02:58.2]}
2... fxe4 {[%clk 0:02:58.8]} 3. Nc3 {[%clk 0:02:58.8]} 3... Nf6 {[%clk
0:02:59.2]} 4. Bg5 {[%clk 0:02:58.7]} 4... Nc6 {[%clk 0:02:59.9]} 5. d5 {[%clk
0:02:42.3]} 5... Ne5 {[%clk 0:03:00.2]} 6. Bxf6 {[%clk 0:02:37.5]} 6... exf6
{[%clk 0:03:01.1]} 7. Nxe4 {[%clk 0:02:36.2]} 7... Bb4+ {[%clk 0:02:58.1]} 8. c3
{[%clk 0:02:34.4]} 8... Ba5 {[%clk 0:02:58.7]} 9. Qh5+ {[%clk 0:02:28.3]} 9...
Nf7 {[%clk 0:02:56.6]} 10. Bd3 {[%clk 0:02:17.1]} 10... d6 {[%clk 0:02:52.5]}
11. O-O-O {[%clk 0:02:09.7]} 11... g6 {[%clk 0:02:46.6]} 12. Qe2 {[%clk
0:02:02.2]} 12... O-O {[%clk 0:02:46.3]} 13. Nf3 {[%clk 0:01:58]} 13... Ne5
{[%clk 0:02:46.1]} 14. Nxe5 {[%clk 0:01:48.6]} 14... fxe5 {[%clk 0:02:46.2]} 15.
f3 {[%clk 0:01:38.2]} 15... Bf5 {[%clk 0:02:37.4]} 16. h4 {[%clk 0:01:37]} 16...
Bb6 {[%clk 0:02:29.5]} 17. Kb1 {[%clk 0:01:32]} 17... Bxe4 {[%clk 0:02:24]} 18.
Bxe4 {[%clk 0:01:22.5]} 18... Qf6 {[%clk 0:02:24.1]} 19. h5 {[%clk 0:01:21.3]}
19... g5 {[%clk 0:02:23.9]} 20. h6 {[%clk 0:01:17.5]} 20... Kh8 {[%clk 0:02:15]}
21. g4 {[%clk 0:01:15.1]} 21... Qf4 {[%clk 0:02:10]} 22. Qd3 {[%clk 0:01:06.2]}
22... Rf7 {[%clk 0:02:10.3]} 23. Rh5 {[%clk 0:01:00]} 23... Re8 {[%clk
0:02:00.8]} 24. a3 {[%clk 0:00:56]} 24... Ree7 {[%clk 0:02:00]} 25. Rf1 {[%clk
0:00:50.6]} 25... Rf6 {[%clk 0:02:00.3]} 26. Rd1 {[%clk 0:00:40.6]} 26... Qe3
{[%clk 0:01:59.7]} 27. Qxe3 {[%clk 0:00:38.9]} 27... Bxe3 {[%clk 0:02:00.6]} 28.
Kc2 {[%clk 0:00:37.1]} 28... Kg8 {[%clk 0:01:57.5]} 29. Kd3 {[%clk 0:00:36]}
29... Bf4 {[%clk 0:01:56.2]} 30. Bf5 {[%clk 0:00:35]} 30... Rxf5 {[%clk
0:01:52.9]} 31. gxf5 {[%clk 0:00:34.1]} 31... Kf7 {[%clk 0:01:53.5]} 32. Ke4
{[%clk 0:00:31.5]} 32... Kf6 {[%clk 0:01:54]} 33. c4 {[%clk 0:00:29.1]} 33... b6
{[%clk 0:01:53.8]} 34. b4 {[%clk 0:00:28.5]} 34... Re8 {[%clk 0:01:53.3]} 35.
Rhh1 {[%clk 0:00:26.7]} 35... Ra8 {[%clk 0:01:52.9]} 36. Ra1 {[%clk 0:00:25.8]}
36... a5 {[%clk 0:01:53.1]} 37. Rhb1 {[%clk 0:00:19.8]} 37... Bd2 {[%clk
0:01:53]} 38. Kd3 {[%clk 0:00:17.5]} 38... Bf4 {[%clk 0:01:51.9]} 39. Ke4 {[%clk
0:00:17.4]} 39... Bd2 {[%clk 0:01:52.2]} 40. Ra2 {[%clk 0:00:17]} 40... Bc3
{[%clk 0:01:49.6]} 41. Rc2 {[%clk 0:00:16]} 41... axb4 {[%clk 0:01:47.4]} 42.
axb4 {[%clk 0:00:16.1]} 42... Bd4 {[%clk 0:01:48]} 43. Rg2 {[%clk 0:00:11.9]}
43... Ra3 {[%clk 0:01:47.8]} 44. Re2 {[%clk 0:00:08.4]} 44... Rc3 {[%clk
0:01:46.7]} 45. c5 {[%clk 0:00:07.5]} 45... bxc5 {[%clk 0:01:45.4]} 46. bxc5
{[%clk 0:00:07.5]} 46... Bxc5 {[%clk 0:01:46]} 47. Rb7 {[%clk 0:00:06.9]} 47...
Bb6 {[%clk 0:01:46.4]} 48. Rxb6 {[%clk 0:00:02.5]} 48... cxb6 {[%clk 0:01:46.4]}
49. Rb2 {[%clk 0:00:02.7]} 49... Rc4+ {[%clk 0:01:44.8]} 50. Kd3 {[%clk
0:00:02]} 50... Rd4+ {[%clk 0:01:45.4]} 51. Ke3 {[%clk 0:00:02.2]} 51... Rxd5
{[%clk 0:01:45.4]} 52. Rxb6 {[%clk 0:00:02.1]} 52... Kxf5 {[%clk 0:01:45.6]} 53.
Rb7 {[%clk 0:00:02.4]} 53... Kg6 {[%clk 0:01:46.1]} 54. Rg7+ {[%clk 0:00:01.3]}
54... Kxh6 {[%clk 0:01:46.2]} 55. Rg8 {[%clk 0:00:01.3]} 55... Rd4 {[%clk
0:01:45.3]} 0-1

[Event "Early-Titled-Tuesday-Blitz-October-03-2023"]
[Site "Chess.com"]
[Date "2023.10.03"]
[Round "4"]
[White "BilodeauA"]
[Black "djano"]
[Result "1-0"]
[WhiteElo "2912"]
[BlackElo "2662"]
[TimeControl "180+1"]
[EndTime "8:38:55 PDT"]
[Termination "BilodeauA won by resignation"]

1. d4 {[%clk 0:03:00.9]} 1... d5 {[%clk 0:02:59.1]} 2. Nc3 {[%clk 0:03:01.6]}
2... Nc6 {[%clk 0:02:56.9]} 3. Bf4 {[%clk 0:03:02.2]} 3... e5 {[%clk 0:02:56.7]}
4. dxe5 {[%clk 0:02:52.8]} 4... d4 {[%clk 0:02:57]} 5. Ne4 {[%clk 0:02:53]} 5...
Qd5 {[%clk 0:02:57.2]} 6. Ng3 {[%clk 0:02:45.1]} 6... Nxe5 {[%clk 0:02:55.5]} 7.
e4 {[%clk 0:02:42.9]} 7... Bb4+ {[%clk 0:02:45.1]} 8. c3 {[%clk 0:02:15.8]} 8...
dxc3 {[%clk 0:02:13.7]} 9. exd5 {[%clk 0:02:15.6]} 9... Bg4 {[%clk 0:01:03.4]}
10. Qa4+ {[%clk 0:02:11.2]} 10... Nc6 {[%clk 0:01:02.9]} 11. bxc3 {[%clk
0:01:46.6]} 11... Bxc3+ {[%clk 0:01:01.6]} 12. Bd2 {[%clk 0:01:47]} 12... Bxa1
{[%clk 0:00:35]} 13. dxc6 {[%clk 0:01:45.8]} 13... b5 {[%clk 0:00:13.7]} 14.
Qxg4 {[%clk 0:01:38.4]} 14... Nf6 {[%clk 0:00:14.1]} 15. Qe2+ {[%clk 0:01:23.1]}
15... Kf8 {[%clk 0:00:14.4]} 16. Bb4+ {[%clk 0:01:04.7]} 16... Kg8 {[%clk
0:00:14.1]} 17. Nf5 {[%clk 0:01:03.8]} 17... g6 {[%clk 0:00:07.8]} 18. Qd1
{[%clk 0:00:47.7]} 18... Be5 {[%clk 0:00:07]} 19. Nf3 {[%clk 0:00:47.4]} 19...
Re8 {[%clk 0:00:04.7]} 20. Ne7+ {[%clk 0:00:45.4]} 20... Rxe7 {[%clk 0:00:02.4]}
21. Bxe7 {[%clk 0:00:45.6]} 21... Bc3+ {[%clk 0:00:03.3]} 22. Ke2 {[%clk
0:00:42.6]} 22... Kg7 {[%clk 0:00:03.4]} 23. Qb3 {[%clk 0:00:35.6]} 23... b4
{[%clk 0:00:02.4]} 24. Ng5 {[%clk 0:00:32]} 24... Re8 {[%clk 0:00:02.3]} 25.
Qxf7+ {[%clk 0:00:31.8]} 1-0

[Event "Early-Titled-Tuesday-Blitz-October-03-2023"]
[Site "Chess.com"]
[Date "2023.10.03"]
[Round "4"]
[White "DanyKopy"]
[Black "Itk04"]
[Result "1-0"]
[WhiteElo "2556"]
[BlackElo "2733"]
[TimeControl "180+1"]
[EndTime "8:39:04 PDT"]
[Termination "DanyKopy won by resignation"]

1. d4 {[%clk 0:03:00.9]} 1... d5 {[%clk 0:02:58.9]} 2. c4 {[%clk 0:03:00]} 2...
c6 {[%clk 0:02:59.5]} 3. Nf3 {[%clk 0:02:59.2]} 3... Nf6 {[%clk 0:02:59.5]} 4.
Nbd2 {[%clk 0:02:58.9]} 4... e6 {[%clk 0:02:51.9]} 5. g3 {[%clk 0:02:55.1]} 5...
c5 {[%clk 0:02:51.8]} 6. cxd5 {[%clk 0:02:42.9]} 6... exd5 {[%clk 0:02:52.7]} 7.
Bg2 {[%clk 0:02:41.6]} 7... Nc6 {[%clk 0:02:51.8]} 8. O-O {[%clk 0:02:39.8]}
8... c4 {[%clk 0:02:40.9]} 9. b3 {[%clk 0:02:19.1]} 9... b5 {[%clk 0:02:21]} 10.
bxc4 {[%clk 0:02:16.5]} 10... bxc4 {[%clk 0:02:17.4]} 11. Ne5 {[%clk 0:02:15.5]}
11... Nxd4 {[%clk 0:01:36.2]} 12. Ndxc4 {[%clk 0:02:11.2]} 12... Ne6 {[%clk
0:01:35.8]} 13. Qa4+ {[%clk 0:02:02.7]} 13... Bd7 {[%clk 0:01:35.6]} 14. Nxd7
{[%clk 0:02:01.9]} 14... Qxd7 {[%clk 0:01:27.5]} 15. Qxd7+ {[%clk 0:02:00.2]}
15... Kxd7 {[%clk 0:01:28]} 16. Rd1 {[%clk 0:01:58.9]} 16... Rc8 {[%clk
0:01:03]} 17. Bxd5 {[%clk 0:01:38.1]} 17... Nxd5 {[%clk 0:01:03.5]} 18. Rxd5+
{[%clk 0:01:38.6]} 18... Ke8 {[%clk 0:01:04.2]} 19. Nd6+ {[%clk 0:01:37.7]}
19... Bxd6 {[%clk 0:01:01.5]} 20. Rxd6 {[%clk 0:01:38.6]} 20... Ke7 {[%clk
0:00:45.1]} 21. Ra6 {[%clk 0:01:35.4]} 21... Rc7 {[%clk 0:00:43.1]} 22. Be3
{[%clk 0:01:34.9]} 22... Ra8 {[%clk 0:00:31.7]} 23. Rb1 {[%clk 0:01:27.7]} 23...
f6 {[%clk 0:00:25.9]} 24. Kf1 {[%clk 0:01:15.8]} 24... g5 {[%clk 0:00:24.4]} 25.
g4 {[%clk 0:01:02]} 25... Rd7 {[%clk 0:00:24.2]} 26. h3 {[%clk 0:01:00.4]} 26...
h6 {[%clk 0:00:14.3]} 27. Rb4 {[%clk 0:00:59.9]} 27... Kf7 {[%clk 0:00:13.7]}
28. Re4 {[%clk 0:00:58.2]} 28... Nf8 {[%clk 0:00:10.2]} 29. Bd4 {[%clk
0:00:56.6]} 29... Nh7 {[%clk 0:00:07.7]} 30. e3 {[%clk 0:00:53.4]} 30... Rb7
{[%clk 0:00:04]} 31. Ree6 {[%clk 0:00:51.2]} 31... Rb1+ {[%clk 0:00:02.9]} 32.
Kg2 {[%clk 0:00:51.2]} 32... Rb7 {[%clk 0:00:02.2]} 33. Bxf6 {[%clk 0:00:49.6]}
33... Nxf6 {[%clk 0:00:01.5]} 34. Rxf6+ {[%clk 0:00:50.5]} 34... Ke7 {[%clk
0:00:02.4]} 35. Rxh6 {[%clk 0:00:49.3]} 35... Rb2 {[%clk 0:00:03.2]} 36. Rh7+
{[%clk 0:00:48.9]} 1-0

[Event "Early-Titled-Tuesday-Blitz-October-03-2023"]
[Site "Chess.com"]
[Date "2023.10.03"]
[Round "4"]
[White "Yushko_Olga"]
[Black "Daniel_Salinas"]
[Result "0-1"]
[WhiteElo "2083"]
[BlackElo "2427"]
[TimeControl "180+1"]
[EndTime "8:39:06 PDT"]
[Termination "Daniel_Salinas won on time"]

1. d4 {[%clk 0:03:00]} 1... d5 {[%clk 0:02:58]} 2. c4 {[%clk 0:02:59.1]} 2... c6
{[%clk 0:02:54.1]} 3. cxd5 {[%clk 0:02:58.9]} 3... cxd5 {[%clk 0:02:55]} 4. Nc3
{[%clk 0:02:59.5]} 4... Nc6 {[%clk 0:02:51.4]} 5. Nf3 {[%clk 0:02:59.3]} 5...
Nf6 {[%clk 0:02:50]} 6. Bf4 {[%clk 0:02:59.2]} 6... a6 {[%clk 0:02:48]} 7. e3
{[%clk 0:02:59.5]} 7... Bg4 {[%clk 0:02:43.6]} 8. Be2 {[%clk 0:03:00.2]} 8... e6
{[%clk 0:02:43.8]} 9. O-O {[%clk 0:02:59.9]} 9... Bd6 {[%clk 0:02:42.9]} 10. Ne5
{[%clk 0:02:58.9]} 10... Bxe2 {[%clk 0:02:40.2]} 11. Qxe2 {[%clk 0:02:53.4]}
11... Bxe5 {[%clk 0:02:27.7]} 12. dxe5 {[%clk 0:02:53.7]} 12... Nd7 {[%clk
0:02:25.5]} 13. e4 {[%clk 0:02:51.1]} 13... d4 {[%clk 0:02:24.5]} 14. Na4 {[%clk
0:02:46.7]} 14... Ndxe5 {[%clk 0:02:19.8]} 15. Bxe5 {[%clk 0:02:25.6]} 15...
Nxe5 {[%clk 0:02:19.6]} 16. f4 {[%clk 0:02:25.9]} 16... Nc6 {[%clk 0:02:16.2]}
17. Nc5 {[%clk 0:02:12.3]} 17... Qe7 {[%clk 0:02:06.3]} 18. Rac1 {[%clk
0:02:00.2]} 18... O-O {[%clk 0:02:03.8]} 19. Qc4 {[%clk 0:01:38.4]} 19... Rac8
{[%clk 0:01:53.9]} 20. Qb3 {[%clk 0:01:34.7]} 20... Rc7 {[%clk 0:01:34.8]} 21.
e5 {[%clk 0:01:25.3]} 21... Rfc8 {[%clk 0:01:29.4]} 22. Qb6 {[%clk 0:01:04.6]}
22... Nxe5 {[%clk 0:01:13.1]} 23. fxe5 {[%clk 0:00:52.8]} 23... Rxc5 {[%clk
0:01:11.5]} 24. Rxc5 {[%clk 0:00:52.8]} 24... Rxc5 {[%clk 0:01:06.5]} 25. b4
{[%clk 0:00:43.5]} 25... Rd5 {[%clk 0:00:56.9]} 26. Rc1 {[%clk 0:00:35.1]} 26...
h6 {[%clk 0:00:45.1]} 27. Rc8+ {[%clk 0:00:07.2]} 27... Kh7 {[%clk 0:00:44.1]}
28. Rc7 {[%clk 0:00:07.5]} 28... Rd7 {[%clk 0:00:40.8]} 0-1

[Event "Early-Titled-Tuesday-Blitz-October-03-2023"]
[Site "Chess.com"]
[Date "2023.10.03"]
[Round "4"]
[White "Zurability"]
[Black "AbdulovOrkhan"]
[Result "0-1"]
[WhiteElo "2712"]
[BlackElo "2546"]
[TimeControl "180+1"]
[EndTime "8:39:07 PDT"]
[Termination "AbdulovOrkhan won by resignation"]

1. Nf3 {[%clk 0:03:00.9]} 1... c5 {[%clk 0:02:52.9]} 2. g3 {[%clk 0:02:58]} 2...
Nc6 {[%clk 0:02:50.4]} 3. Bg2 {[%clk 0:02:55.7]} 3... g6 {[%clk 0:02:51]} 4. O-O
{[%clk 0:02:55.4]} 4... Bg7 {[%clk 0:02:51.6]} 5. c4 {[%clk 0:02:50.4]} 5... Nf6
{[%clk 0:02:49.1]} 6. Nc3 {[%clk 0:02:50.1]} 6... O-O {[%clk 0:02:47.4]} 7. d4
{[%clk 0:02:49.1]} 7... cxd4 {[%clk 0:02:43.7]} 8. Nxd4 {[%clk 0:02:50]} 8... a6
{[%clk 0:02:27]} 9. c5 {[%clk 0:02:48.3]} 9... Qc7 {[%clk 0:02:22.8]} 10. Nb3
{[%clk 0:02:43.6]} 10... Rd8 {[%clk 0:02:09.5]} 11. Bf4 {[%clk 0:02:40.8]} 11...
d6 {[%clk 0:01:54.6]} 12. cxd6 {[%clk 0:02:33.1]} 12... exd6 {[%clk 0:01:55.5]}
13. Bg5 {[%clk 0:02:29.2]} 13... Be6 {[%clk 0:01:46.6]} 14. Ne4 {[%clk
0:01:57.2]} 14... Qe7 {[%clk 0:01:45.7]} 15. Rc1 {[%clk 0:01:38.7]} 15... h6
{[%clk 0:01:43.5]} 16. Nxf6+ {[%clk 0:01:38.3]} 16... Bxf6 {[%clk 0:01:43.3]}
17. Bxh6 {[%clk 0:01:38.4]} 17... Bxb2 {[%clk 0:01:42.8]} 18. Rc2 {[%clk
0:01:32.6]} 18... Bf6 {[%clk 0:01:42.1]} 19. Be3 {[%clk 0:01:27.3]} 19... a5
{[%clk 0:01:29]} 20. Bb6 {[%clk 0:01:15]} 20... Rd7 {[%clk 0:01:27]} 21. Nd4
{[%clk 0:01:10.8]} 21... Nxd4 {[%clk 0:01:22.7]} 22. Bxd4 {[%clk 0:01:10.8]}
22... a4 {[%clk 0:01:19.4]} 23. e3 {[%clk 0:00:53.8]} 23... a3 {[%clk
0:01:17.1]} 24. Bxf6 {[%clk 0:00:49.3]} 24... Qxf6 {[%clk 0:01:16.1]} 25. Bd5
{[%clk 0:00:50]} 25... Bh3 {[%clk 0:01:14.5]} 26. Re1 {[%clk 0:00:48.7]} 26...
Ra5 {[%clk 0:01:06.6]} 27. Qd2 {[%clk 0:00:41.8]} 27... Rc5 {[%clk 0:01:03.4]}
28. Rb1 {[%clk 0:00:36.7]} 28... Rdc7 {[%clk 0:00:53.9]} 29. Rxc5 {[%clk
0:00:32.7]} 29... dxc5 {[%clk 0:00:45.8]} 30. f4 {[%clk 0:00:32.2]} 30... c4
{[%clk 0:00:43.6]} 31. Kf2 {[%clk 0:00:14.7]} 31... c3 {[%clk 0:00:42.7]} 32.
Qc2 {[%clk 0:00:14.1]} 32... Bf5 {[%clk 0:00:39.3]} 33. e4 {[%clk 0:00:14.5]}
33... Qd4+ {[%clk 0:00:39.4]} 34. Kf3 {[%clk 0:00:14.9]} 34... Qxd5 {[%clk
0:00:37.6]} 0-1